fUSD/lending_fUSD_20260601
["ID","MTS","AMOUNT","RATE_DAILY","PERIOD"]
[423655364,1780282257000,-505.82387489,0.00031142,2]
[423655367,1780282257000,-764.75463748,0.00031142,2]
[423655370,1780282257000,-668.35841706,0.00031142,2]
[423655363,1780282257000,-475.92193956,0.00031142,2]
[423655366,1780282257000,-594.32639218,0.00031142,2]
[423655368,1780282257000,-349.17692773,0.00031142,2]
[423655365,1780282257000,-214.39823807,0.00031142,2]
[423655369,1780282257000,-309.20329225,0.00031142,2]
[423655356,1780282257000,-1076.46036714,0.00031142,2]
[423655404,1780282257000,-518.18435277,0.00031142,2]
[423655410,1780282257000,-590.18862411,0.00031142,2]
[423655406,1780282257000,-212.83095287,0.00031142,2]
[423655438,1780282257000,-165.92170048,0.00031266,2]
[423655444,1780282257000,-691.75930463,0.00031279,2]
[423655445,1780282257000,-695.11944697,0.00031279,2]
[423655442,1780282257000,-573.53784036,0.00031266,2]
[423655441,1780282257000,-591.25829186,0.00031266,2]
[423655440,1780282257000,-560.62785977,0.00031266,2]
[423655443,1780282257000,-888.74728332,0.00031266,2]
[423655447,1780282257000,-607.00405218,0.00031284,2]
[423655448,1780282257000,-489.03823233,0.00031284,2]
[423655446,1780282257000,-217.86759542,0.00031284,2]
[423655452,1780282257000,-678.66536041,0.00031284,2]
[423655463,1780282257000,-468203.88648054,0.00031329,7]
[423655454,1780282257000,-647.82476118,0.00031285,2]
[423655455,1780282257000,-814.85697721,0.00031285,2]
[423655464,1780282257000,-929.0,0.00031339,2]
[423655453,1780282257000,-590.42778871,0.00031284,2]
[423655462,1780282257000,-3718.86773018,0.00031329,7]
[423655460,1780282257000,-13552.76274879,0.00031329,7]
[423655461,1780282257000,-2191.12077887,0.00031329,7]
[423655459,1780282257000,-1783.84854935,0.00031324,2]
[423655458,1780282257000,-611.9153308,0.00031288,2]
[423655456,1780282257000,-198.81886785,0.00031287,2]
[423655457,1780282257000,-620.39800071,0.00031287,2]
[423655465,1780282257000,-3551.0,0.00031339,2]
[423655466,1780282257000,-525.0,0.00031339,2]
[423655468,1780282257000,-3639.0,0.00031339,2]
[423655467,1780282257000,-1226.0,0.00031339,2]
[423655469,1780282257000,-1783.84854935,0.0003134,2]
[423655407,1780282257000,-948.69189848,0.00031142,2]
[423655451,1780282257000,-645.42266843,0.00031284,2]
[423655449,1780282257000,-622.27963261,0.00031284,2]
[423655470,1780282257000,-1783.84854935,0.00031355,2]
[423655439,1780282257000,-202.76477457,0.00031266,2]
[423655450,1780282257000,-592.3821504,0.00031284,2]
[423655405,1780282257000,-411.62346131,0.00031142,2]
[423655422,1780282257000,-776.69391449,0.00031142,2]
[423655424,1780282257000,-462.2531645,0.00031191,3]
[423655412,1780282257000,-167.97197492,0.00031142,2]
[423655411,1780282257000,-623.48770568,0.00031142,2]
[423655423,1780282257000,-595.18159265,0.00031142,2]
[423655413,1780282257000,-441.13521964,0.00031142,2]
[423655419,1780282257000,-589.55195292,0.00031142,2]
[423655414,1780282257000,-527.99989185,0.00031142,2]
[423655420,1780282257000,-731.16334099,0.00031142,2]
[423655421,1780282257000,-572.5155438,0.00031142,2]
[423655416,1780282257000,-821.25304178,0.00031142,2]
[423655415,1780282257000,-533.00049215,0.00031142,2]
[423655408,1780282257000,-587.88115128,0.00031142,2]
[423655417,1780282257000,-595.85496508,0.00031142,2]
[423655418,1780282257000,-322.00028325,0.00031142,2]
[423655436,1780282257000,-741.97642827,0.00031266,2]
[423655431,1780282257000,-692.57093998,0.00031266,2]
[423655429,1780282257000,-232.263572,0.000312,4]
[423655432,1780282257000,-657.95120532,0.00031266,2]
[423655426,1780282257000,-193.216666,0.000312,7]
[423655434,1780282257000,-268.18813164,0.00031266,2]
[423655433,1780282257000,-483.05699281,0.00031266,2]
[423655437,1780282257000,-511.77003213,0.00031266,2]
[423655435,1780282257000,-456.04929914,0.00031266,2]
[423655428,1780282257000,-196.522396,0.000312,4]
[423655427,1780282257000,-198.737142,0.000312,7]
[423655425,1780282257000,-684.16040564,0.00031193,2]
[423655430,1780282257000,-488.21542937,0.00031266,2]
[423655512,1780282258000,-868.89930871,0.00031872,2]
[423655515,1780282258000,-764.89416349,0.00031881,2]
[423655508,1780282258000,-1000.0,0.000318,7]
[423655514,1780282258000,-775.49750089,0.0003188,2]
[423655513,1780282258000,-777.84954076,0.00031877,2]
[423655509,1780282258000,-865.71367498,0.00031858,2]
[423655510,1780282258000,-809.78095147,0.00031858,2]
[423655511,1780282258000,-864.69913078,0.00031872,2]
[423655506,1780282258000,-855.20050705,0.00031785,2]
[423655504,1780282258000,-1197.0,0.00031752,30]
[423655505,1780282258000,-743.0,0.00031752,30]
[423655507,1780282258000,-2000.0,0.00031796,7]
[423655517,1780282258000,-632.0,0.00031943,7]
[423655524,1780282258000,-151.0,0.0003201,4]
[423655525,1780282258000,-200.0,0.00032055,2]
[423655526,1780282258000,-7296.60514781,0.00032137,30]
[423655518,1780282258000,-152.0,0.00031946,3]
[423655519,1780282258000,-1783.84854935,0.00031976,2]
[423655523,1780282258000,-700.0,0.00032,2]
[423655521,1780282258000,-300.0,0.00032,2]
[423655522,1780282258000,-710.07,0.00032,7]
[423655527,1780282258000,-1148.5,0.0003221,5]
[423655520,1780282258000,-1763.2305975,0.00032,2]
[423655533,1780282258000,-151.0,0.00032329,7]
[423655529,1780282258000,-910.48535076,0.000323,2]
[423655530,1780282258000,-151.0,0.00032329,7]
[423655503,1780282258000,-485.0,0.00031752,30]
[423655528,1780282258000,-867.64,0.00032256,14]
[423655516,1780282258000,-26905.0,0.00031941,2]
[423655499,1780282258000,-2623.0,0.00031752,30]
[423655478,1780282258000,-1676.97,0.00031588,2]
[423655497,1780282258000,-316.0,0.00031742,30]
[423655535,1780282258000,-151.0,0.00032329,7]
[423655474,1780282258000,-150.0,0.000315,2]
[423655473,1780282258000,-200.90036177,0.000315,2]
[423655475,1780282258000,-1000.0,0.00031507,60]
[423655472,1780282258000,-150.0,0.00031439,2]
[423655471,1780282258000,-632.0,0.00031409,6]
[423655476,1780282258000,-666.37,0.00031507,30]
[423655477,1780282258000,-157.0,0.00031552,3]
[423655487,1780282258000,-927.23596304,0.00031733,2]
[423655488,1780282258000,-993.78814882,0.00031733,2]
[423655479,1780282258000,-4440.12,0.00031597,7]
[423655482,1780282258000,-1396.32773107,0.00031733,2]
[423655481,1780282258000,-1345.57545892,0.00031733,2]
[423655483,1780282258000,-955.94329685,0.00031733,2]
[423655485,1780282258000,-927.47053534,0.00031733,2]
[423655480,1780282258000,-1446.22170389,0.00031733,2]
[423655486,1780282258000,-833.20176311,0.00031733,2]
[423655484,1780282258000,-770.68123592,0.00031733,2]
[423655489,1780282258000,-818.86218679,0.00031733,2]
[423655490,1780282258000,-1185.86487309,0.00031733,2]
[423655500,1780282258000,-431.0,0.00031752,30]
[423655491,1780282258000,-913.95417624,0.00031733,2]
[423655492,1780282258000,-594.0,0.00031742,30]
[423655502,1780282258000,-1326.0,0.00031752,30]
[423655493,1780282258000,-767.0,0.00031742,30]
[423655501,1780282258000,-341.0,0.00031752,30]
[423655495,1780282258000,-1554.0,0.00031742,30]
[423655498,1780282258000,-234.0,0.00031752,30]
[423655496,1780282258000,-1162.0,0.00031742,30]
[423655494,1780282258000,-354.0,0.00031742,30]
[423655532,1780282258000,-151.0,0.00032329,7]
[423655536,1780282258000,-151.0,0.00032329,7]
[423655596,1780282258000,-500.0,0.00032877,2]
[423655568,1780282258000,-354.0,0.00032742,30]
[423655579,1780282258000,-1326.0,0.00032752,30]
[423655574,1780282258000,-950.51395183,0.00032746,2]
[423655573,1780282258000,-971.73714177,0.00032746,2]
[423655569,1780282258000,-1554.0,0.00032742,30]
[423655572,1780282258000,-1038.85640997,0.00032746,2]
[423655570,1780282258000,-1162.0,0.00032742,30]
[423655571,1780282258000,-316.0,0.00032742,30]
[423655576,1780282258000,-2623.0,0.00032752,30]
[423655577,1780282258000,-431.0,0.00032752,30]
[423655575,1780282258000,-234.0,0.00032752,30]
[423655581,1780282258000,-1197.0,0.00032752,30]
[423655591,1780282258000,-1000.0,0.00032877,120]
[423655578,1780282258000,-341.0,0.00032752,30]
[423655582,1780282258000,-743.0,0.00032752,30]
[423655583,1780282258000,-930.59700106,0.00032769,2]
[423655585,1780282258000,-4920.76035741,0.000328,2]
[423655587,1780282258000,-164.0,0.00032877,10]
[423655588,1780282258000,-577.77055551,0.00032877,2]
[423655590,1780282258000,-167.5219156,0.00032877,2]
[423655584,1780282258000,-917.87299619,0.0003277,2]
[423655586,1780282258000,-350.84,0.00032877,2]
[423655589,1780282258000,-434.91,0.00032877,2]
[423655594,1780282258000,-500.0,0.00032877,2]
[423655593,1780282258000,-500.0,0.00032877,2]
[423655595,1780282258000,-500.0,0.00032877,2]
[423655597,1780282258000,-500.0,0.00032877,2]
[423655538,1780282258000,-151.0,0.00032329,7]
[423655592,1780282258000,-500.0,0.00032877,2]
[423655567,1780282258000,-767.0,0.00032742,30]
[423655580,1780282258000,-485.0,0.00032752,30]
[423655557,1780282258000,-1147.13195622,0.00032619,2]
[423655534,1780282258000,-151.0,0.00032329,7]
[423655561,1780282258000,-1192.54577859,0.00032619,2]
[423655531,1780282258000,-151.0,0.00032329,7]
[423655537,1780282258000,-151.0,0.00032329,7]
[423655539,1780282258000,-151.0,0.00032329,7]
[423655541,1780282258000,-151.0,0.00032329,7]
[423655551,1780282258000,-1772.31,0.00032505,7]
[423655540,1780282258000,-151.0,0.00032329,7]
[423655543,1780282258000,-151.0,0.00032329,7]
[423655544,1780282258000,-151.0,0.00032329,7]
[423655542,1780282258000,-151.0,0.00032329,7]
[423655545,1780282258000,-199.566697,0.00032329,7]
[423655550,1780282258000,-1000.0,0.000325,7]
[423655549,1780282258000,-1000.0,0.000325,2]
[423655547,1780282258000,-193.216666,0.000324,13]
[423655552,1780282258000,-150.0,0.00032534,30]
[423655558,1780282258000,-1112.96464241,0.00032619,2]
[423655562,1780282258000,-982.63462414,0.00032619,2]
[423655546,1780282258000,-198.737142,0.00032367,12]
[423655563,1780282258000,-1423.03784771,0.00032619,2]
[423655566,1780282258000,-594.0,0.00032742,30]
[423655560,1780282258000,-1112.68315565,0.00032619,2]
[423655559,1780282258000,-961.0653949,0.00032619,2]
[423655565,1780282258000,-232.01,0.000327,8]
[423655564,1780282258000,-232.01,0.000327,8]
[423655555,1780282258000,-1614.6905507,0.00032619,2]
[423655556,1780282258000,-1675.59327728,0.00032619,2]
[423655553,1780282258000,-948.51062516,0.00032619,2]
[423655548,1780282258000,-632.0,0.00032477,7]
[423655554,1780282258000,-1735.46604467,0.00032619,2]
[423655637,1780282259000,-200.0,0.00032888,2]
[423655642,1780282259000,-200.0,0.00032888,2]
[423655639,1780282259000,-200.0,0.00032888,2]
[423655638,1780282259000,-200.0,0.00032888,2]
[423655636,1780282259000,-200.0,0.00032888,2]
[423655635,1780282259000,-200.0,0.00032888,2]
[423655629,1780282259000,-200.0,0.00032888,2]
[423655632,1780282259000,-200.0,0.00032888,2]
[423655633,1780282259000,-200.0,0.00032888,2]
[423655631,1780282259000,-200.0,0.00032888,2]
[423655640,1780282259000,-200.0,0.00032888,2]
[423655643,1780282259000,-200.0,0.00032888,2]
[423655634,1780282259000,-200.0,0.00032888,2]
[423655641,1780282259000,-200.0,0.00032888,2]
[423655666,1780282259000,-164.35,0.000329,120]
[423655650,1780282259000,-200.0,0.00032888,2]
[423655652,1780282259000,-200.0,0.00032888,2]
[423655644,1780282259000,-200.0,0.00032888,2]
[423655647,1780282259000,-200.0,0.00032888,2]
[423655654,1780282259000,-200.0,0.00032888,2]
[423655645,1780282259000,-200.0,0.00032888,2]
[423655646,1780282259000,-200.0,0.00032888,2]
[423655649,1780282259000,-200.0,0.00032888,2]
[423655653,1780282259000,-200.0,0.00032888,2]
[423655648,1780282259000,-200.0,0.00032888,2]
[423655656,1780282259000,-200.0,0.00032888,2]
[423655668,1780282259000,-4440.12,0.00032915,14]
[423655630,1780282259000,-200.0,0.00032888,2]
[423655651,1780282259000,-200.0,0.00032888,2]
[423655622,1780282259000,-200.0,0.00032888,2]
[423655661,1780282259000,-500.0,0.00032888,2]
[423655624,1780282259000,-200.0,0.00032888,2]
[423655655,1780282259000,-200.0,0.00032888,2]
[423655602,1780282259000,-362.36762162,0.00032877,30]
[423655599,1780282259000,-500.0,0.00032877,10]
[423655600,1780282259000,-500.0,0.00032877,10]
[423655598,1780282259000,-423.5684792,0.00032877,2]
[423655601,1780282259000,-300.96172174,0.00032877,10]
[423655604,1780282259000,-200.0,0.00032888,2]
[423655614,1780282259000,-200.0,0.00032888,2]
[423655615,1780282259000,-200.0,0.00032888,2]
[423655616,1780282259000,-200.0,0.00032888,2]
[423655611,1780282259000,-200.0,0.00032888,2]
[423655610,1780282259000,-200.0,0.00032888,2]
[423655603,1780282259000,-200.0,0.00032888,2]
[423655605,1780282259000,-200.0,0.00032888,2]
[423655607,1780282259000,-200.0,0.00032888,2]
[423655609,1780282259000,-200.0,0.00032888,2]
[423655606,1780282259000,-200.0,0.00032888,2]
[423655608,1780282259000,-200.0,0.00032888,2]
[423655612,1780282259000,-200.0,0.00032888,2]
[423655613,1780282259000,-200.0,0.00032888,2]
[423655617,1780282259000,-200.0,0.00032888,2]
[423655618,1780282259000,-200.0,0.00032888,2]
[423655619,1780282259000,-200.0,0.00032888,2]
[423655621,1780282259000,-200.0,0.00032888,2]
[423655628,1780282259000,-200.0,0.00032888,2]
[423655620,1780282259000,-166.0,0.00032888,2]
[423655627,1780282259000,-200.0,0.00032888,2]
[423655625,1780282259000,-200.0,0.00032888,2]
[423655626,1780282259000,-200.0,0.00032888,2]
[423655623,1780282259000,-200.0,0.00032888,2]
[423655667,1780282259000,-230.09,0.000329,120]
[423655677,1780282259000,-954.64881168,0.00033,7]
[423655658,1780282259000,-155.0,0.00032888,2]
[423655698,1780282259000,-150.0,0.00033562,30]
[423655696,1780282259000,-632.0,0.00033545,9]
[423655699,1780282259000,-242.33,0.00033562,7]
[423655697,1780282259000,-152.20324461,0.00033546,120]
[423655707,1780282259000,-316.0,0.00033742,30]
[423655704,1780282259000,-354.0,0.00033742,30]
[423655702,1780282259000,-594.0,0.00033742,30]
[423655703,1780282259000,-767.0,0.00033742,30]
[423655705,1780282259000,-1554.0,0.00033742,30]
[423655657,1780282259000,-200.0,0.00032888,2]
[423655701,1780282259000,-244.47,0.0003373,7]
[423655706,1780282259000,-1162.0,0.00033742,30]
[423655709,1780282259000,-2623.0,0.00033752,30]
[423655689,1780282259000,-357.19330025,0.00033285,114]
[423655719,1780282259000,-1106.59572935,0.00033947,2]
[423655711,1780282259000,-341.0,0.00033752,30]
[423655716,1780282259000,-207.30041193,0.00033804,14]
[423655710,1780282259000,-431.0,0.00033752,30]
[423655713,1780282259000,-485.0,0.00033752,30]
[423655714,1780282259000,-1197.0,0.00033752,30]
[423655712,1780282259000,-1326.0,0.00033752,30]
[423655715,1780282259000,-743.0,0.00033752,30]
[423655718,1780282259000,-254.58,0.00033898,7]
[423655717,1780282259000,-206.79450403,0.00033804,14]
[423655721,1780282259000,-1883.80564249,0.00033947,2]
[423655723,1780282259000,-1298.45874948,0.00033947,2]
[423655722,1780282259000,-1954.8588235,0.00033947,2]
[423655720,1780282259000,-2024.71038544,0.00033947,2]
[423655708,1780282259000,-234.0,0.00033752,30]
[423655690,1780282259000,-1000.0,0.000334,120]
[423655700,1780282259000,-193.216666,0.000336,18]
[423655687,1780282259000,-350.0,0.00033014,5]
[423655660,1780282259000,-500.0,0.00032888,2]
[423655659,1780282259000,-500.0,0.00032888,2]
[423655688,1780282259000,-157.0,0.00033022,3]
[423655662,1780282259000,-500.0,0.00032888,2]
[423655665,1780282259000,-532.0,0.00032888,2]
[423655664,1780282259000,-500.0,0.00032888,2]
[423655669,1780282259000,-400.0,0.00032955,2]
[423655671,1780282259000,-400.0,0.00032955,2]
[423655673,1780282259000,-407.0,0.00032955,2]
[423655676,1780282259000,-246.23731594,0.00032955,2]
[423655670,1780282259000,-400.0,0.00032955,2]
[423655678,1780282259000,-1771.99849852,0.00033,3]
[423655680,1780282259000,-573.522074,0.00033,14]
[423655672,1780282259000,-404.45563422,0.00032955,2]
[423655663,1780282259000,-500.0,0.00032888,2]
[423655691,1780282259000,-1500.0,0.000334,7]
[423655686,1780282259000,-632.0,0.00033011,8]
[423655692,1780282259000,-500.0,0.00033405,2]
[423655685,1780282259000,-212.32897023,0.0003301,4]
[423655695,1780282259000,-198.737142,0.00033533,18]
[423655682,1780282259000,-3995.2,0.00033,14]
[423655684,1780282259000,-157.08,0.00033,2]
[423655694,1780282259000,-1234.37497225,0.000335,2]
[423655683,1780282259000,-222.71,0.00033,14]
[423655681,1780282259000,-300.0,0.00033,2]
[423655675,1780282259000,-419.74441518,0.00032955,2]
[423655679,1780282259000,-1047.58031507,0.00033,30]
[423655693,1780282259000,-1001.05083706,0.00033457,2]
[423655674,1780282259000,-407.0,0.00032955,2]
[423655757,1780282260000,-407.0,0.00034453,2]
[423655760,1780282260000,-150.0,0.00034453,2]
[423655761,1780282260000,-150.0,0.00034453,2]
[423655759,1780282260000,-150.0,0.00034453,2]
[423655748,1780282260000,-3551.0,0.00034339,2]
[423655752,1780282260000,-238.89,0.00034401,7]
[423655758,1780282260000,-407.0,0.00034453,2]
[423655755,1780282260000,-400.0,0.00034453,2]
[423655754,1780282260000,-400.0,0.00034453,2]
[423655762,1780282260000,-258.84072623,0.00034477,2]
[423655750,1780282260000,-1226.0,0.00034339,2]
[423655763,1780282260000,-157.0,0.00034492,3]
[423655768,1780282260000,-201.54,0.00034589,30]
[423655764,1780282260000,-5000.0,0.000345,14]
[423655767,1780282260000,-243.5,0.00034544,60]
[423655766,1780282260000,-221.02,0.00034521,120]
[423655770,1780282260000,-867.64,0.00034672,14]
[423655769,1780282260000,-632.0,0.00034613,10]
[423655771,1780282260000,-198.737142,0.000347,24]
[423655773,1780282260000,-594.0,0.00034742,30]
[423655783,1780282260000,-1326.0,0.00034752,30]
[423655772,1780282260000,-198.865714,0.000347,12]
[423655774,1780282260000,-767.0,0.00034742,30]
[423655777,1780282260000,-1162.0,0.00034742,30]
[423655765,1780282260000,-264.84,0.00034521,120]
[423655749,1780282260000,-525.0,0.00034339,2]
[423655775,1780282260000,-354.0,0.00034742,30]
[423655756,1780282260000,-407.0,0.00034453,2]
[423655730,1780282260000,-750.0,0.00034,2]
[423655732,1780282260000,-242.1,0.00034066,7]
[423655726,1780282260000,-1146.4070615,0.00033947,2]
[423655729,1780282260000,-300.0,0.00034,2]
[423655731,1780282260000,-404.0,0.00034,30]
[423655728,1780282260000,-350.0,0.00033973,5]
[423655725,1780282260000,-1298.13034826,0.00033947,2]
[423655724,1780282260000,-1121.24296072,0.00033947,2]
[423655727,1780282260000,-1660.21082233,0.00033947,2]
[423655733,1780282260000,-632.0,0.00034079,9]
[423655735,1780282260000,-1133.69333206,0.00034079,2]
[423655738,1780282260000,-1070.85182889,0.00034103,2]
[423655736,1780282260000,-1108.93294381,0.00034079,2]
[423655744,1780282260000,-4440.12,0.00034233,14]
[423655737,1780282260000,-1122.83874997,0.00034094,2]
[423655734,1780282260000,-1211.99914497,0.00034079,2]
[423655746,1780282260000,-2000.0,0.00034247,30]
[423655745,1780282260000,-1000.0,0.00034247,120]
[423655740,1780282260000,-1148.5,0.00034182,7]
[423655743,1780282260000,-261.74,0.00034233,7]
[423655739,1780282260000,-7296.60514781,0.00034137,40]
[423655741,1780282260000,-232.01,0.000342,11]
[423655742,1780282260000,-232.01,0.000342,11]
[423655747,1780282260000,-929.0,0.00034339,2]
[423655751,1780282260000,-3639.0,0.00034339,2]
[423655753,1780282260000,-400.0,0.00034453,2]
[423655778,1780282260000,-316.0,0.00034742,30]
[423655781,1780282260000,-431.0,0.00034752,30]
[423655779,1780282260000,-234.0,0.00034752,30]
[423655810,1780282260000,-166.13,0.00035479,120]
[423655812,1780282260000,-4440.12,0.00035551,30]
[423655819,1780282260000,-300.0,0.00035562,2]
[423655811,1780282260000,-1676.97,0.00035536,2]
[423655815,1780282260000,-581.09,0.00035554,2]
[423655816,1780282260000,-300.0,0.00035562,2]
[423655813,1780282260000,-500.0,0.00035554,2]
[423655817,1780282260000,-300.0,0.00035562,2]
[423655820,1780282260000,-300.0,0.00035562,2]
[423655814,1780282260000,-500.0,0.00035554,2]
[423655818,1780282260000,-300.0,0.00035562,2]
[423655827,1780282260000,-300.0,0.00035562,2]
[423655823,1780282260000,-1097.16968584,0.00035562,2]
[423655830,1780282260000,-300.0,0.00035562,2]
[423655828,1780282260000,-300.0,0.00035562,2]
[423655832,1780282260000,-493.71853303,0.00035562,2]
[423655822,1780282260000,-300.0,0.00035562,2]
[423655826,1780282260000,-300.0,0.00035562,2]
[423655829,1780282260000,-300.0,0.00035562,2]
[423655824,1780282260000,-300.0,0.00035562,2]
[423655831,1780282260000,-300.0,0.00035562,2]
[423655821,1780282260000,-325.24093541,0.00035562,2]
[423655825,1780282260000,-300.0,0.00035562,2]
[423655835,1780282260000,-300.0,0.00035562,2]
[423655833,1780282260000,-300.0,0.00035562,2]
[423655809,1780282260000,-250.0,0.00035425,7]
[423655808,1780282260000,-632.0,0.00035147,10]
[423655776,1780282260000,-1554.0,0.00034742,30]
[423655802,1780282260000,-389.0,0.00035,120]
[423655782,1780282260000,-341.0,0.00034752,30]
[423655834,1780282260000,-300.0,0.00035562,2]
[423655780,1780282260000,-2623.0,0.00034752,30]
[423655784,1780282260000,-485.0,0.00034752,30]
[423655787,1780282260000,-1500.0,0.00034795,2]
[423655786,1780282260000,-743.0,0.00034752,30]
[423655790,1780282260000,-152.0,0.00034824,4]
[423655794,1780282260000,-350.0,0.00034931,5]
[423655791,1780282260000,-1001.0,0.00034849,120]
[423655785,1780282260000,-1197.0,0.00034752,30]
[423655788,1780282260000,-193.216666,0.000348,24]
[423655793,1780282260000,-157.0774543,0.000349,120]
[423655789,1780282260000,-193.341666,0.000348,12]
[423655796,1780282260000,-1954.28643989,0.00035,2]
[423655792,1780282260000,-1042433.86195223,0.000349,3]
[423655801,1780282260000,-161.36973561,0.00035,30]
[423655800,1780282260000,-931.601,0.00035,120]
[423655799,1780282260000,-245.82,0.00035,2]
[423655798,1780282260000,-163.51,0.00035,120]
[423655797,1780282260000,-182.1819368,0.00035,120]
[423655803,1780282260000,-201.21994257,0.00035,7]
[423655807,1780282260000,-378.0,0.0003513,30]
[423655804,1780282260000,-168.91932067,0.00035,7]
[423655806,1780282260000,-1000.0,0.00035,120]
[423655805,1780282260000,-1002.48062918,0.00035,14]
[423655795,1780282260000,-1000.0,0.00034984,3]
[423655881,1780282261000,-1636.24753201,0.00035562,2]
[423655877,1780282261000,-300.0,0.00035562,2]
[423655875,1780282261000,-300.0,0.00035562,2]
[423655876,1780282261000,-1149.64153705,0.00035562,2]
[423655874,1780282261000,-300.0,0.00035562,2]
[423655873,1780282261000,-300.0,0.00035562,2]
[423655883,1780282261000,-300.0,0.00035562,2]
[423655871,1780282261000,-950.98229606,0.00035562,2]
[423655872,1780282261000,-1800.99236666,0.00035562,2]
[423655867,1780282261000,-300.0,0.00035562,2]
[423655858,1780282261000,-300.0,0.00035562,2]
[423655882,1780282261000,-300.0,0.00035562,2]
[423655863,1780282261000,-344.67640552,0.00035562,2]
[423655891,1780282261000,-300.0,0.00035562,2]
[423655880,1780282261000,-300.0,0.00035562,2]
[423655884,1780282261000,-300.0,0.00035562,2]
[423655887,1780282261000,-300.0,0.00035562,2]
[423655886,1780282261000,-300.0,0.00035562,2]
[423655888,1780282261000,-464.81458028,0.00035562,2]
[423655889,1780282261000,-300.0,0.00035562,2]
[423655893,1780282261000,-300.0,0.00035562,2]
[423655892,1780282261000,-452.85549676,0.00035562,2]
[423655895,1780282261000,-300.0,0.00035562,2]
[423655896,1780282261000,-300.0,0.00035562,2]
[423655890,1780282261000,-578.77492127,0.00035562,2]
[423655869,1780282261000,-300.0,0.00035562,2]
[423655885,1780282261000,-595.21497888,0.00035562,2]
[423655878,1780282261000,-310.25089904,0.00035562,2]
[423655866,1780282261000,-527.99519721,0.00035562,2]
[423655849,1780282261000,-727.57003954,0.00035562,2]
[423655864,1780282261000,-300.0,0.00035562,2]
[423655845,1780282261000,-1069.16901834,0.00035562,2]
[423655844,1780282261000,-403.31610524,0.00035562,2]
[423655837,1780282261000,-300.0,0.00035562,2]
[423655842,1780282261000,-300.0,0.00035562,2]
[423655836,1780282261000,-300.0,0.00035562,2]
[423655843,1780282261000,-300.0,0.00035562,2]
[423655839,1780282261000,-605.70713704,0.00035562,2]
[423655840,1780282261000,-300.0,0.00035562,2]
[423655838,1780282261000,-300.0,0.00035562,2]
[423655841,1780282261000,-300.0,0.00035562,2]
[423655847,1780282261000,-300.0,0.00035562,2]
[423655857,1780282261000,-300.0,0.00035562,2]
[423655846,1780282261000,-535.11946239,0.00035562,2]
[423655868,1780282261000,-300.0,0.00035562,2]
[423655848,1780282261000,-313.93663126,0.00035562,2]
[423655854,1780282261000,-301.20088581,0.00035562,2]
[423655851,1780282261000,-302.42365621,0.00035562,2]
[423655905,1780282261000,-300.0,0.00035562,2]
[423655853,1780282261000,-300.0,0.00035562,2]
[423655856,1780282261000,-300.0,0.00035562,2]
[423655850,1780282261000,-300.0,0.00035562,2]
[423655852,1780282261000,-300.0,0.00035562,2]
[423655859,1780282261000,-300.0,0.00035562,2]
[423655870,1780282261000,-866.17918798,0.00035562,2]
[423655860,1780282261000,-300.0,0.00035562,2]
[423655862,1780282261000,-1264.80678045,0.00035562,2]
[423655865,1780282261000,-300.0,0.00035562,2]
[423655861,1780282261000,-300.0,0.00035562,2]
[423655855,1780282261000,-300.0,0.00035562,2]